Cogmind - Beta 13 *** ADVENTURER MODE // 2024.03.20 @ 21:15:06 Player: skye Result: Self-destructed Performance ------------- Evolutions (1) 500 Regions Visited (2) 400 Robots Destroyed (24) 120 Value Destroyed (830) 830 Prototype IDs (2) 40 Alien Tech Used (0) 0 Bonus (0) 0 TOTAL SCORE: 1890 Bonus ------- None Cogmind --------- Core Integrity 271/400 Matter 300/300 Energy 89/250 System Corruption 0% Temperature Cool (0) Movement Core (300) Ox5 Location -9/Materials Parts ------- > --- POWER (1) -------- Ion Engine > --- PROPULSION (2) --- (None) > --- UTILITY (4) ------ Improved Heat Sink Medium Storage Unit Structural Scanner > --- WEAPON (2) ------- (None) > --- INVENTORY (10) --- Light Ion Engine Light Nuclear Core Light Nuclear Core Aluminum Leg Cooling System Small Storage Unit Medium Laser Small Laser Beam Cannon Peak State ------------ > --- POWER ------------ Improved Ion Engine > --- PROPULSION ------- Aluminum Leg Aluminum Leg > --- UTILITY ---------- Improved Heat Sink Medium Storage Unit Structural Scanner Light Armor Plating > --- WEAPON ----------- EM Shotgun Beam Rifle > --- INVENTORY -------- Ion Engine Light Ion Engine Light Nuclear Core Light Nuclear Core Aluminum Leg Cooling System Small Storage Unit Medium Laser Small Laser Beam Cannon [Rating: 15] Favorites ----------- Power Improved Ion Engine Engine Improved Ion Engine Propulsion Wheel Treads Light Treads Leg Aluminum Leg Wheel Wheel Utility Medium Storage Unit Device Improved Heat Sink Storage Medium Storage Unit Protection Light Armor Plating Weapon Assault Rifle Energy Gun Medium Laser Ballistic Gun Assault Rifle Slashing Weapon Mining Claw Build | -11 -10 -9 ------- Run | Yrd Mat Mat Slots Evolved 2 | . . 2 Power . | . . . Propulsion . | . . . Utility 2 | . . 2 Weapon . | . . . Parts Attached 30 | . 12 18 Power 6 | . 1 5 Engine 6 | . 1 5 Core . | . . . Reactor . | . . . Propulsion 10 | . 4 6 Treads 2 | . . 2 Leg 5 | . 2 3 Wheel 3 | . 2 1 Hover . | . . . Flight . | . . . Utility 7 | . 4 3 Device 5 | . 3 2 Storage 1 | . 1 . Processor . | . . . Hackware . | . . . Protection 1 | . . 1 Artifact . | . . . Weapon 7 | . 3 4 Energy Gun 4 | . 1 3 Energy Cannon . | . . . Ballistic Gun 2 | . 1 1 Ballistic Cannon . | . . . Launcher . | . . . Special Weapon . | . . . Impact Weapon . | . . . Slashing Weapon 1 | . 1 . Piercing Weapon . | . . . Special Melee Weapon . | . . . Unidentified Prototypes . | . . . Parts Lost 7 | . . 7 Power 1 | . . 1 Propulsion 3 | . . 3 Utility 1 | . . 1 Weapon 2 | . . 2 Highest Loss Streak 6 | . . 6 To Critical Strikes 2 | . . 2 Average Slot Usage (%) 94 | . 96 93 Engine 12 | . 14 10 Leg 9 | . 11 8 Wheel 14 | . 16 11 Device 16 | . 10 21 Storage 12 | . 14 11 Protection 3 | . . 6 Energy Gun 15 | . 14 17 Ballistic Gun 8 | . 14 4 Naked Turns . | . . . Heaviest Build 28 | 12 22 28 Greatest Support 40 | 20 20 40 Greatest Overweight (x) 5 | . 1 5 Average Overweight (x) . | . . . Largest Inventory Capacity 10 | . 10 10 Average Capacity 9 | . 9 10 Most Carried 10 | . 10 10 Average Carried 9 | . 9 9 Final Capacity 10 | 8 10 10 Final Carried 10 | 6 10 9 Class Distribution -------------------- 80% | Mutant 19% | Scavenger-Mutant Dominant Class ---------------- Mutant | -10/Materials Mutant | -9/Materials Resources | -11 -10 -9 ----------- Run | Yrd Mat Mat Matter Collected 593 | 200 112 281 Remotely . | . . . Salvage Created 1080 | . 296 784 Parts 61 | . 19 42 Haulers Intercepted . | . . . Recyclers Shooed . | . . . Parts Field Recycled . | . . . Retrieved Matter . | . . . Parts Self-Destructed . | . . . Prevented . | . . . Kills | -11 -10 -9 ------- Run | Yrd Mat Mat Combat Hostiles Destroyed 21 | . 7 14 Guns 21 | . 7 14 Classes Destroyed 5 | . 2 3 Tunneler 2 | . 1 1 Recycler 1 | . . 1 Swarmer 1 | . . 1 Grunt 15 | . 7 8 Sentry 5 | . . 5 Best Kill Streak 4 | . 3 4 Combat Bots Only 4 | . 2 4 Max Kills in Single Turn 1 | . 1 1 Gunslinging . | . . . Exploded . | . . . Melee . | . . . Uniques/NPCs Destroyed . | . . . Combat | -11 -10 -9 -------- Run | Yrd Mat Mat Hostile Shots Fired 177 | . 43 134 Missed 59 | . 14 45 Damage Taken 1220 | . 307 913 Core 219 | . 90 129 Absorbed by Shields . | . . . Ignored by Resistances 358 | . 93 265 Core Remaining (%) 82 | 100 64 . Volleys Fired 80 | . 25 55 Largest 2 | . 2 2 Hottest 101 | . 70 101 Shots Fired 144 | . 49 95 Gun 144 | . 49 95 Cannon . | . . . Launcher . | . . . Special . | . . . Kinetic 41 | . 25 16 Thermal 79 | . 24 55 Explosive . | . . . Electromagnetic 24 | . . 24 Robot Hit Streak 25 | . 16 25 Robot Miss Streak 2 | . 2 2 Penetration Max . | . . . Secondary Targets 6 | . 2 4 Max Gunslinging Chain 1 | . 1 1 Shots Hit Robots 125 | . 41 84 Core Hits 52 | . 19 33 Critical Kills . | . . . Critical Parts Destroyed . | . . . Critical Strikes 6 | . 3 3 Burn 6 | . 3 3 Melee Attacks . | . . . Impact . | . . . Slashing . | . . . Piercing . | . . . Sneak Attacks . | . . . Combat Hostiles . | . . . Follow-up Attacks . | . . . Damage Inflicted 1716 | . 545 1171 Guns 1636 | . 538 1098 Cannons . | . . . Explosions 73 | . . 73 Melee . | . . . Ramming 7 | . 7 . Kinetic 411 | . 247 164 Thermal 970 | . 291 679 Explosive . | . . . Electromagnetic 328 | . . 328 Impact . | . . . Slashing . | . . . Piercing . | . . . Highest Corruption 1 | . 1 . Average Corruption 1 | . 1 . Corruption Purged . | . . . Corruption Blocked . | . . . Effects 2 | . 2 . Message Errors 1 | . 1 . Energy Discharges 1 | . 1 . Overload Shots . | . . . Overflow Damage . | . . . Projectiles . | . . . Explosions . | . . . Melee . | . . . Knockbacks . | . . . Impact . | . . . Kinetic . | . . . Secondary . | . . . Self-Inflicted Damage 1 | . 1 . Shots . | . . . Rammed 1 | . 1 . Targets Rammed 2 | . 2 . Kicked 1 | . 1 . Crushed . | . . . Highest Temperature 267 | . 267 40 Average Temperature 81 | . 116 6 Received Heat Transfer 753 | . 243 510 Effects 1 | . 1 . Energy Bleed 1 | . 1 . Siege Activations . | . . . Robots Corrupted . | . . . Combat Hostiles . | . . . Parts Fried 1 | . . 1 Impact Corruptions . | . . . Robots Melted . | . . . Combat Hostiles . | . . . Parts Melted 6 | . 4 2 Heat Transferred 2931 | . 1073 1858 Parts Sabotaged . | . . . Parts Stolen . | . . . Parts Stripped . | . . . Power Chain Reactions 1 | . . 1 Alert | -11 -10 -9 ------- Run | Yrd Mat Mat Peak Influence 329 | . 229 329 Initial 31 | . . 31 Average 164 | . 107 213 Maximum Alert Level 1 | . 1 1 Low Security (%) 61 | . 88 38 Level 1 38 | . 11 61 Level 2 . | . . . Level 3 . | . . . Level 4 . | . . . Level 5 . | . . . High Security . | . . . Max Security . | . . . Squads Dispatched 2 | . . 2 Investigation 1 | . . 1 Extermination . | . . . Reinforcement 1 | . . 1 Assault . | . . . Garrison . | . . . Intercept . | . . . Searches Triggered . | . . . Construction Impeded . | . . . Haulers Reinforced . | . . . Active Scanning Responses . | . . . Cargo Convoy Interrupts . | . . . Stealth | -11 -10 -9 --------- Run | Yrd Mat Mat Distress Signals 1 | . . 1 Communications Jammed . | . . . Distress Signals . | . . . Times Spotted 39 | . 15 24 Peak Tracking Total 6 | . 3 6 Tactical Retreats . | . . . Traps | -11 -10 -9 ------- Run | Yrd Mat Mat Traps Triggered 3 | . 1 2 Indirectly . | . . . Trap Hack Attempts . | . . . Triggered . | . . . Disarmed . | . . . Reprogrammed . | . . . Reused . | . . . Traps Extracted . | . . . Installed . | . . . Triggered . | . . . Machines | -11 -10 -9 ---------- Run | Yrd Mat Mat Machines Disabled . | . . . Max in Single Turn . | . . . Machines Repaired . | . . . Machines Dismantled . | . . . Machines Sabotaged . | . . . Overloaded Fab Kills . | . . . Hacking | -11 -10 -9 --------- Run | Yrd Mat Mat Machines Accessed 9 | . 5 4 Terminals 9 | . 5 4 Fabricators . | . . . Repair Stations . | . . . Recycling Units . | . . . Scanalyzers . | . . . Garrison Access . | . . . Total Hacks 22 | . 11 11 Successful 11 | . 6 5 Failed 11 | . 5 6 Catastrophic 5 | . 3 2 Database Lockouts . | . . . Manual 21 | . 10 11 Terminals 22 | . 11 11 Fabricators . | . . . Repair Stations . | . . . Recycling Units . | . . . Scanalyzers . | . . . Garrison Access . | . . . Terminal Hacks 5 | . 3 2 Robot Analysis 1 | . 1 . Prototype ID Bank 1 | . . 1 Terminal Index 2 | . 1 1 Garrison Status 1 | . 1 . Fabricator Hacks . | . . . Repair Station Hacks . | . . . Recycling Unit Hacks . | . . . Scanalyzer . | . . . Garrison Access Hacks . | . . . Unauthorized Hacks 5 | . 2 3 Terminals 5 | . 2 3 Botnet 5 | . 2 3 Fabricators . | . . . Repair Stations . | . . . Recycling Units . | . . . Scanalyzers . | . . . Garrison Access . | . . . Data Cores Recovered . | . . . Used . | . . . Hacking Detections 9 | . 5 4 Full Trace Events 1 | . . 1 Feedback Events . | . . . Feedback Blocked . | . . . Robot Schematics Acquired . | . . . Robots Built . | . . . Authchips . | . . . Time . | . . . Total Robot Build Rating . | . . . Part Schematics Acquired . | . . . Parts Built . | . . . Authchips . | . . . Time . | . . . Total Part Build Rating . | . . . Parts Repaired . | . . . Time . | . . . Parts Recycled . | . . . Recycled Matter . | . . . Retrieved Matter . | . . . Retrieved Components . | . . . Parts Scanalyzed . | . . . Part Schematics Acquired . | . . . Parts Damaged . | . . . Bothacking | -11 -10 -9 ------------ Run | Yrd Mat Mat Used RIF Installer . | . . . Robots Hacked . | . . . Non-combat . | . . . Combat . | . . . Robot Hacks Applied . | . . . Relay Couplers Released . | . . . Fabnet Peak Effective % . | . . . Robots Rewired . | . . . Allies Hacked . | . . . Hacks Repelled . | . . . Allies | -11 -10 -9 -------- Run | Yrd Mat Mat Total Allies . | . . . Largest Group . | . . . Highest-Rated Group . | . . . Highest-Rated Ally . | . . . Total Orders . | . . . Ally Attacks . | . . . Total Damage . | . . . Kills . | . . . Allies Corrupted . | . . . Allies Melted . | . . . Intel | -11 -10 -9 ------- Run | Yrd Mat Mat Robot Analysis Total 1 | . 1 . Derelict Logs Recovered . | . . . Drone Launches . | . . . Drone Recoveries . | . . . Exploration | -11 -10 -9 ------------- Run | Yrd Mat Mat Turns Passed 1378 | . 635 743 Spaces Moved 1058 | 1 578 479 Core 1 | . . 1 Treads 11 | . . 11 Legs 273 | 1 155 117 Wheels 773 | . 423 350 Hover . | . . . Flight . | . . . Fastest Speed 80 | 120 80 80 Average Speed 102 | 120 90 116 Slowest Speed 300 | 120 190 300 Overloaded Moves . | . . . Propulsion Burnouts . | . . . Robots Hopped . | . . . Cave-ins Triggered . | . . . Exploration Rate (%) 46 | 1 90 48 Regions Visited 2 Branch Regions . Pre-discovered Areas . | . . . Known Exits Taken . | . . . Unknown Exits Taken 2 | 1 1 . Scrap Searched . | . . . Spaces Dug . | . . . Terrain Destroyed 4 | . . 4 Melee . | . . . Projectile . | . . . AOE 4 | . . 4 Terrain Rammed . | . . . Walls Destroyed . | . . . Machines Disabled . | . . . Actions | -11 -10 -9 --------- Run | Yrd Mat Mat Total 1211 | . 642 569 Wait 6 | . 6 . Move 1056 | . 577 479 Hop . | . . . Pick Up 12 | . 8 4 Fast Attach 12 | . 4 8 Attach 9 | . 2 7 Detach 5 | . 1 4 Swap 9 | . 6 3 Drop 20 | . 11 9 Fire 80 | . 25 55 Melee . | . . . Ram 1 | . 1 . Kick 1 | . 1 . Crush . | . . . Escape Stasis . | . . . Rewire . | . . . Trap . | . . . Miscellaneous . | . . . Route ------- -11/Scrapyard -10/Materials (discovered 4 exits: *Mat x2 / [*Min x2]) -9/Materials (discovered 2 exits: [*Mat] / [*Min]) History --------- Turn | Location | Event 1 | -11/Scrapyard | Discovered new exit (range 0) 1 | -11/Scrapyard | Entered Materials 269 | -10/Materials | Discovered new exit (range 16) 306 | -10/Materials | Build established: Mutant 334 | -10/Materials | Discovered new exit (range 13) 551 | -10/Materials | Discovered new exit (range 14) 631 | -10/Materials | Discovered new exit (range 6) 636 | -10/Materials | Entered another Materials area 636 | -9/Materials | Evolved 2 slots: Utility x2 669 | -9/Materials | Discovered new exit (range 16) 895 | -9/Materials | Discovered new exit (range 15) 1379 | -9/Materials | Self-destructed Last Messages --------------- Lgt. Armor Plating destroyed. Y-45 Defender heat damages Beam Rifle. Critical hit (Burn: +37). Y-45 Defender destroyed. Critical hit (Burn: +37). Critical hit (Destroy). Imp. Ion Engine destroyed. Critical hit (Burn: +37). Critical hit (Destroy). Aluminum Leg destroyed. Y-45 Defender suffers critical hit (Burn). K-01 Serf collects debris. Critical hit (Burn: +37). K-01 Serf collects debris. EM Shotgun destroyed. K-01 Serf collects debris. Aluminum Leg destroyed. K-01 Serf collects debris. Beam Rifle destroyed. Y-45 Defender heat damages Heat Sink. Map ----- +----------------------------------------------------+ | ?????????????## """ # ##????## # # | | ?????????????## """ # ##???? # # # | | ?????????????## # # ???? # # # | | ?????????????## """ " # # ???? # # + | | ?????????????## """ T # # ???? + # # | | ?????????????## """ " # # ???? # ####### | | ????????????? # # # ???? # | | ????????????? #+#####+## # ???????????????? | | ????????????? + ##???????????????? | | ????????????? # ##### ## # ???????????????? | | ????????????? #+#####+## # ???????????????? | | ????????????? # + + ???????????????? | | ?????????????## ##### ???????????????? | | ?????????????## """ ##### ???????????????? | | ?????????????## """""m ##???????????????????? | | ?????????????## """"" ##???????????????????? | | ?????????????## """"" ##???????????????????? | | ?????????????## "" /##???????????????????? | | ?????????????## ##???????????????????? | | ?????????????## ##???????????????????? | | ?????????????#######Y####???????????????????? | | ??????? ##?####### ##???????????????????? | | ??????? # ###### ##???????????????????? | | ??????? + ##???????????????????? | | ??????? # ### ## ##???????????????????? | | ??????? ##?#### ## @ ##???????????????????? | | ?????????????##+### Yk###???????????????????? | | ???????????????? # !b###???????????????????? | | ????????????????? + g##????????????????????? | | ????????????????" # g##????????????????????? | | ???????????????"" # ????????????????????? | | ??????????????""" # ?????????????????????? | | ????????????? ? # ????????????????????? | | ?????????????###? # ???????????????????? | | ?????????????###?####+## ???????????????????? | | ?????????????????# # ???????????????????? | | ????????????????????????????????????????????? | | ????????????????????????????????????????????? | | ????????????????????????????????????????????? | | ????????????????????????????????????????????? | | ????????????????????????????????????????????? | | ????????????????????????????????????????????? | | ????????????????????????????????????????????? | | ????????????????????????????????????????????? | | ????????????????????????????????????????????? | | ????????????????????????????????????????????? | | ????????????????????????????????????????????? | | ????????????????????????????????????????????? | | ????????????????????????????????????????????? | | ????????????????????????????????????????????? | +----------------------------------------------------+ Best States ------------- Heat Dissipation 42 Energy Generation 12 Energy Capacity 265 Matter Stores 300 Matter Capacity 300 Sight Range 16 Terrain Scan Density 10 Armor Coverage 150 Resistance: KI 20 Resistance: TH 20 Resistance: EX 20 Resistance: EM 20 Resistance: I 20 Resistance: S 20 Resistance: P 20 Evasion (%) 55 Recoil Reduction 2 Offensive Hacking 10 Item Schematics ----------------- None Robot Schematics ------------------ None Fabricated ------------ Nothing Alien Tech Used ----------------- None Achievements -------------- None Challenges ------------ None Game ------ Seed ChipEfficiencySegregator Manual? 0 Play Time 00:15:16 Cumulative 32.9 hours Start 2024.03.20 @ 20:57:32 End 2024.03.20 @ 21:15:06 Sessions 1 Manual Loads 0 Difficulty Adventurer Special Mode None Game No. 33 Rogue 5 Adventurer 28 Explorer 0 Win Type - Total 0 Types 0/0/0/0/0/0/0/0/0 Lore% 22 Gallery% 40 Achievement% 27 Wizard Run 0 Options --------- Layout 1 ASCII 0 Keyboard 1 Movement Vi Keybinds 0 Fullscreen 1 Font 24/Terminus Map View 50x40 Zoom Use 0% Tactical HUD 0 Map Filters NONE Filters NONE Steam 1 RUN: 8c852033-f06e-4766-adb6-06e7f823ec25